bitfinex/quotes_SOLUSD_20250831
["timestamp","ask_amount","ask_price","bid_price","bid_amount"]
[1756653896835,4.51353619,204.58,204.57,0.72]
[1756653897337,4.51353619,204.58,204.55,0.72]
[1756653897855,4.51353619,204.58,204.54,0.03]
[1756653898039,4.51353619,204.58,204.55,0.72]
[1756653898239,4.51353619,204.58,204.56,0.72]
[1756653900357,4.51353619,204.57,204.54,0.03]
[1756653900564,4.51353619,204.57,204.54,0.75]
[1756653901634,9.40173568,204.58,204.54,0.03]
[1756653901840,9.40173568,204.58,204.55,0.72]
[1756653902047,9.40173568,204.58,204.55,0.75]
[1756653902540,9.40173568,204.58,204.55,0.03]
[1756653902737,30.5135362,204.59,204.56,0.72]
[1756653902951,26.00000001,204.59,204.56,0.72]
[1756653903146,26.00000001,204.59,204.55,4.54353619]
[1756653903344,30.5135362,204.59,204.55,0.75]
[1756653903842,30.5135362,204.59,204.55,0.03]
[1756653903843,4.51353619,204.56,204.55,0.03]
[1756653904047,30.51353619,204.57,204.55,0.75]
[1756653904257,30.51353619,204.57,204.55,0.03]
[1756653904451,4.90353619,204.56,204.55,0.03]
[1756653904655,30.90353619,204.56,204.55,0.03]
[1756653904860,34.19504333,204.56,204.55,0.03]
[1756653905065,72.35504333,204.56,204.55,0.03]
[1756653906164,77.24358458,204.56,204.55,0.03]
[1756653907361,76.85358458,204.56,204.55,0.03]
[1756653907671,33.80504333,204.56,204.55,0.03]
[1756653907968,0.39000001,204.59,204.55,0.75]
[1756653907969,4.88800133,204.59,204.55,0.75]
[1756653908152,42.67353619,204.58,204.55,0.03]
[1756653908349,42.67353619,204.58,204.56,0.72]
[1756653909141,42.67353619,204.58,204.55,0.03]
[1756653909345,42.67353619,204.58,204.55,0.75]
[1756653909546,47.56164065,204.58,204.56,0.72]
[1756653909764,4.51353619,204.57,204.55,0.03]
[1756653909953,30.51353619,204.56,204.55,0.03]
[1756653910154,69.06353619,204.56,204.55,0.03]
[1756653910353,72.35389064,204.56,204.55,0.03]
[1756653911363,76.85243189,204.56,204.55,0.03]
[1756653912074,72.3388957,204.56,204.55,0.03]
[1756653912271,76.85243189,204.56,204.55,0.03]
[1756653913469,73.56207744,204.56,204.55,0.03]
[1756653914267,4.51353619,204.56,204.55,0.75]
[1756653914578,42.67353619,204.56,204.55,0.03]
[1756653915257,51.24130215,204.56,204.54,0.03]
[1756653915462,30.51353619,204.53,204.52,0.03]
[1756653915665,71.9627609,204.53,204.52,0.03]
[1756653915876,72.3527609,204.53,204.52,0.03]
[1756653916368,77.24201919,204.53,204.52,0.03]
[1756653919757,39.08201919,204.53,204.52,0.03]
[1756653919982,77.24201919,204.53,204.52,0.03]
[1756653924284,4.88925829,204.53,204.52,0.75]
[1756653924490,9.40279448,204.53,204.52,0.75]
[1756653925073,4.51353619,204.53,204.52,0.75]
[1756653925475,38.16,204.53,204.52,0.75]
[1756653925676,4.51353619,204.55,204.52,0.75]
[1756653925992,4.57353619,204.57,204.52,0.75]
[1756653926192,0.06,204.57,204.53,4.51353619]
[1756653926385,0.06,204.57,204.54,0.72]
[1756653926583,4.51353619,204.55,204.54,0.72]
[1756653926971,9.40231643,204.55,204.54,0.72]
[1756653928996,4.88878024,204.55,204.54,0.72]
[1756653929193,38.16,204.55,204.54,0.72]
[1756653930466,42.67353619,204.55,204.54,0.72]
[1756653931493,47.56231643,204.55,204.54,0.72]
[1756653933420,47.56231643,204.55,204.52,0.73]
[1756653933596,30.51353619,204.53,204.52,0.03]
[1756653933796,50.85108647,204.53,204.52,0.03]
[1756653934002,51.24108647,204.53,204.52,0.03]
[1756653935318,50.85108647,204.53,204.52,0.03]
[1756653937701,38.69108647,204.53,204.52,0.03]
[1756653937902,50.85108647,204.53,204.52,0.03]
[1756653940432,50.85108647,204.53,204.52,0.73]
[1756653940433,8.17755028,204.53,204.52,0.73]
[1756653940623,47.56279448,204.53,204.52,0.73]
[1756653941100,47.56279448,204.53,204.52,0.03]
[1756653941305,50.84960471,204.53,204.52,0.03]
[1756653942631,12.68960471,204.53,204.52,0.03]
[1756653942932,50.84960471,204.53,204.52,0.03]
[1756653943346,64.83519872,204.53,204.5,0.03]
[1756653943501,30.51353619,204.51,204.5,0.03]
[1756653943704,71.96034642,204.51,204.5,0.03]
[1756653944038,72.35034642,204.51,204.5,0.03]
[1756653944533,76.85008286,204.51,204.5,0.03]
[1756653947134,77.24008286,204.51,204.5,0.03]
[1756653947643,95.34921306,204.51,204.5,1e-08]
[1756653947814,95.34921306,204.51,204.49,0.03]
[1756653947815,26.0,204.48,204.47,0.03]
[1756653948016,71.96034642,204.48,204.47,0.03]
[1756653950222,76.85080025,204.48,204.47,0.03]
[1756653954540,76.85080025,204.48,204.47,0.73]
[1756653955819,78.81182525,204.48,204.47,0.73]
[1756653956623,78.81182525,204.48,204.47,0.03]
[1756653956927,78.81182525,204.48,204.47,0.73]
[1756653957137,40.65182525,204.48,204.47,0.73]
[1756653957357,76.85080025,204.48,204.47,0.73]
[1756653957536,38.69080025,204.48,204.47,0.73]
[1756653957741,50.85080025,204.48,204.47,0.73]
[1756653958527,46.33726406,204.48,204.47,0.73]
[1756653958734,50.85080025,204.48,204.47,0.73]
[1756653959421,12.69080025,204.48,204.47,0.73]
[1756653959628,50.85080025,204.48,204.47,0.73]
[1756653961135,50.85080025,204.48,204.47,0.03]
[1756653962240,12.69080025,204.48,204.47,0.03]
[1756653962439,50.83080025,204.48,204.47,0.03]
[1756653962830,52.79153625,204.48,204.47,0.03]
[1756653963033,53.18153625,204.48,204.47,0.03]
[1756653964147,52.79153625,204.48,204.47,0.03]
[1756653964356,52.79253179,204.48,204.47,0.03]
[1756653967150,48.2789956,204.48,204.47,0.69]
[1756653967362,52.79253179,204.48,204.47,0.69]
[1756653968153,48.2789956,204.48,204.47,0.69]
[1756653968342,50.83179579,204.48,204.47,0.69]
[1756653969534,50.83179579,204.48,204.47,0.03]
[1756653970154,50.83179579,204.48,204.47,0.69]
[1756653970750,7.80134196,204.48,204.47,0.69]
[1756653970946,38.14,204.48,204.47,0.69]
[1756653971456,42.65353619,204.48,204.47,0.69]
[1756653972043,47.54399002,204.48,204.47,0.69]
[1756653972249,50.83202497,204.48,204.47,0.69]
[1756653972639,50.83202497,204.48,204.47,0.03]
[1756653972854,76.83202497,204.48,204.47,0.03]
[1756653973677,33.80157114,204.48,204.47,0.69]
[1756653973846,68.65353619,204.48,204.47,0.69]
[1756653976768,76.83590554,204.48,204.47,0.69]
[1756653976972,73.54399002,204.48,204.47,0.69]
[1756653978165,76.83730108,204.48,204.47,0.69]
[1756653978764,76.83730108,204.48,204.47,0.03]
[1756653979169,73.54399002,204.48,204.47,0.03]
[1756653979389,76.83904331,204.48,204.47,0.03]
[1756653980568,38.69904331,204.48,204.47,0.03]
[1756653980769,76.83904331,204.48,204.47,0.03]
[1756653981567,76.83904331,204.48,204.47,0.69]
[1756653981988,38.69904331,204.48,204.47,0.69]
[1756653982171,76.83904331,204.48,204.47,0.03]
[1756653983594,76.83904331,204.48,204.47,0.69]
[1756653984675,76.83904331,204.48,204.47,0.03]
[1756653984878,50.83904331,204.48,204.47,0.03]
[1756653985080,51.22904331,204.48,204.47,0.03]
[1756653985287,53.19006831,204.48,204.47,0.03]
[1756653985495,66.78566232,204.48,204.47,1e-08]
[1756653985670,53.19006831,204.48,204.46,1e-08]
[1756653985992,7.80858948,204.47,204.46,1e-08]
[1756653986287,10.15971048,204.47,204.46,1e-08]
[1756653986863,19.1692201,204.47,204.46,1e-08]
[1756653987095,18.7792201,204.47,204.46,1e-08]
[1756653987293,56.8992201,204.47,204.46,1e-08]
[1756653988993,52.78040349,204.47,204.46,1e-08]
[1756653991295,56.8992201,204.47,204.46,1e-08]
[1756653991683,70.88481411,204.47,204.46,1e-08]
[1756653991870,39.59559401,204.45,204.44,1e-08]
[1756653992074,89.6478001,204.45,204.44,1e-08]
[1756653992275,94.92897153,204.45,204.44,1e-08]
[1756653992468,96.89038153,204.45,204.44,1e-08]
[1756653994409,92.76676492,204.45,204.44,1e-08]
[1756653995271,96.88787469,204.45,204.44,1e-08]
[1756653996691,96.49787469,204.45,204.44,1e-08]
[1756653997476,92.37676492,204.45,204.44,1e-08]
[1756653998000,54.25676492,204.45,204.44,1e-08]
[1756653998298,92.37676492,204.45,204.44,1e-08]
[1756654001206,54.25676492,204.45,204.44,1e-08]
[1756654001420,92.37676492,204.45,204.44,1e-08]
[1756654001995,92.37676492,204.45,204.43,1e-08]
[1756654001996,13.59559401,204.44,204.43,1e-08]
[1756654002201,26.0,204.41,204.39,0.03]
[1756654002432,45.92858948,204.4,204.39,0.03]
[1756654002604,47.89028748,204.4,204.39,0.03]
[1756654002805,47.89028748,204.4,204.39,0.74]
[1756654003008,47.89028748,204.4,204.39,0.03]
[1756654004112,66.37824939,204.4,204.39,0.03]
[1756654004333,66.37824939,204.4,204.34,0.74]
[1756654004334,26.0,204.38,204.34,0.74]
[1756654004530,45.92858948,204.37,204.34,0.74]
[1756654005030,47.89067248,204.37,204.34,0.74]
[1756654005401,47.89067248,204.37,204.36,0.91]
[1756654005591,47.89067248,204.37,204.36,0.2]
[1756654006222,52.78375854,204.37,204.36,0.2]
[1756654009537,52.78375854,204.37,204.34,0.03]
[1756654009538,13.59559401,204.36,204.34,0.03]
[1756654009841,59.52418349,204.35,204.34,0.03]
[1756654010128,61.48655449,204.35,204.34,0.03]
[1756654010904,66.38011945,204.35,204.34,0.03]
[1756654011105,66.38011945,204.35,204.34,0.74]
[1756654011922,11.36947215,204.35,204.34,0.74]
[1756654012122,49.48947215,204.35,204.34,0.74]
[1756654012631,6.85593596,204.35,204.34,0.74]
[1756654012806,49.48947215,204.35,204.34,0.74]
[1756654013131,11.36947215,204.35,204.34,0.74]
[1756654013309,49.48947215,204.35,204.34,0.74]
[1756654015112,11.36947215,204.35,204.34,0.74]
[1756654015313,49.48947215,204.35,204.34,0.74]
[1756654015711,47.52710115,204.35,204.34,0.74]
[1756654016522,9.40710115,204.35,204.34,0.74]
[1756654016918,47.52710115,204.35,204.34,0.74]
[1756654020828,1.962083,204.36,204.34,0.74]
[1756654021036,50.26269391,204.44,204.34,0.74]
[1756654021250,4.51353619,204.39,204.34,5.25353619]
[1756654021442,38.12,204.38,204.35,0.71]
[1756654021843,42.63353619,204.38,204.35,0.71]
[1756654022759,38.12,204.37,204.35,0.71]
[1756654025329,4.89236806,204.4,204.35,0.71]
[1756654025530,38.12,204.39,204.35,0.71]
[1756654025755,42.63353619,204.39,204.35,0.71]
[1756654025949,26.0,204.41,204.35,5.22353619]
[1756654026157,42.61353619,204.4,204.36,0.7]
[1756654026526,4.51353619,204.4,204.36,0.7]
[1756654026728,38.1,204.39,204.34,0.03]
[1756654026933,4.51353619,204.37,204.34,0.03]
[1756654027154,42.61353619,204.37,204.34,0.03]
[1756654027355,4.51353619,204.37,204.34,0.03]
[1756654027556,42.61353619,204.37,204.35,0.7]
[1756654027756,4.51353619,204.36,204.34,0.03]
[1756654027933,42.61353619,204.35,204.34,0.03]
[1756654028134,68.61353619,204.35,204.34,0.03]
[1756654029154,73.50710115,204.35,204.34,0.03]
[1756654029363,76.79787736,204.35,204.34,0.03]
[1756654030466,64.78347137,204.35,204.34,0.03]
[1756654031242,52.68347137,204.35,204.34,0.03]
[1756654031447,64.78347137,204.35,204.34,0.03]
[1756654032361,66.74584337,204.35,204.34,0.03]
[1756654032867,52.76024936,204.35,204.34,0.03]
[1756654033261,14.66024936,204.35,204.34,0.73]
[1756654033444,50.79787736,204.35,204.34,0.73]
[1756654034055,46.28434117,204.35,204.34,0.73]
[1756654034254,50.79787736,204.35,204.34,0.73]
[1756654038784,3.29077621,204.35,204.34,0.73]
[1756654038970,30.51353619,204.35,204.34,0.73]
[1756654039171,68.61353619,204.35,204.34,0.73]
[1756654039381,33.80873566,204.35,204.34,0.73]
[1756654039550,38.70230062,204.35,204.34,0.03]
[1756654042450,12.70230062,204.35,204.34,0.03]
[1756654042675,13.09230062,204.35,204.34,0.03]
[1756654042976,15.05457662,204.35,204.34,0.03]
[1756654043580,14.66457662,204.35,204.34,0.03]
[1756654044582,52.76457662,204.35,204.34,0.03]
[1756654045479,53.15457662,204.35,204.34,0.03]
[1756654045785,57.27568639,204.35,204.33,0.03]
[1756654045971,8.19873566,204.34,204.33,0.03]
[1756654046155,12.31984543,204.34,204.33,0.03]
[1756654046364,10.16110766,204.34,204.33,0.03]
[1756654046777,15.0549121,204.34,204.33,0.03]
[1756654046977,28.65050611,204.34,204.33,0.03]
[1756654048458,28.26050611,204.34,204.33,0.03]
[1756654048986,10.15137591,204.34,204.33,0.03]
[1756654049179,52.7649121,204.34,204.33,0.03]
[1756654050780,50.8025401,204.34,204.33,0.73]
[1756654055798,50.8025401,204.34,204.33,0.03]
[1756654056478,12.7025401,204.34,204.33,0.03]
[1756654056677,50.8025401,204.34,204.33,0.03]
[1756654057400,12.7025401,204.34,204.33,0.03]
[1756654057902,50.8025401,204.34,204.33,0.03]
[1756654060981,50.7825401,204.34,204.33,0.03]
[1756654065011,50.8425401,204.34,204.33,0.03]
[1756654065589,12.7625401,204.34,204.33,0.03]
[1756654065889,50.8425401,204.34,204.33,0.03]
[1756654067731,12.7625401,204.34,204.33,0.03]
[1756654067905,64.82813411,204.34,204.33,0.03]
[1756654068107,64.43813411,204.34,204.33,0.03]
[1756654068306,66.40060211,204.34,204.33,0.03]
[1756654068925,52.8050081,204.34,204.33,0.03]
[1756654069805,50.8425401,204.34,204.33,0.03]
[1756654070605,12.7625401,204.34,204.33,0.03]
[1756654070804,50.8425401,204.34,204.33,0.03]
[1756654071733,52.8049121,204.34,204.33,0.03]
[1756654072422,56.92602187,204.34,204.33,0.03]
[1756654073728,52.41248568,204.34,204.33,0.03]
[1756654074030,56.92602187,204.34,204.33,0.03]
[1756654074229,18.84602187,204.34,204.33,0.03]
[1756654074526,54.96364987,204.34,204.33,0.03]
[1756654074734,18.84602187,204.34,204.33,0.03]
[1756654074919,56.92602187,204.34,204.33,0.03]
[1756654077336,57.31602187,204.34,204.33,0.03]
[1756654077635,70.52161588,204.34,204.33,0.03]
[1756654078134,70.91161588,204.34,204.33,0.03]
[1756654078924,66.79050611,204.34,204.33,0.03]
[1756654079333,66.79050611,204.34,204.32,0.03]
[1756654079530,12.31946511,204.33,204.32,0.03]
[1756654079723,30.42859531,204.33,204.32,1e-08]
[1756654079946,28.65093761,204.33,204.32,1e-08]
[1756654080142,13.59559401,204.32,204.31,1e-08]
[1756654080343,64.9749444,204.32,204.31,1e-08]
[1756654080642,59.48432967,204.32,204.31,1e-08]
[1756654080840,63.99786567,204.32,204.31,1e-08]
[1756654081536,69.28214914,204.32,204.31,1e-08]
[1756654081910,64.37861295,204.32,204.31,1e-08]
[1756654082123,68.89214914,204.32,204.31,1e-08]
[1756654083736,68.87214914,204.32,204.31,1e-08]
[1756654083930,30.81214914,204.32,204.31,0.69000001]
[1756654084124,12.70301894,204.32,204.31,0.69000001]
[1756654084341,50.76301913,204.32,204.31,0.69000001]
[1756654085418,56.85415642,204.32,204.31,0.69000001]
[1756654085654,14.66548713,204.32,204.31,0.69000001]
[1756654085945,50.76301913,204.32,204.31,0.69000001]
[1756654086120,64.35861314,204.32,204.31,1e-08]
[1756654086325,64.74861314,204.32,204.31,1e-08]
[1756654086620,66.32137014,204.32,204.31,1e-08]
[1756654088144,66.32907703,204.32,204.31,1e-08]
[1756654089346,10.15994683,204.32,204.31,1e-08]
[1756654089545,52.73348302,204.32,204.31,0.69000001]
[1756654089719,50.77072602,204.32,204.31,0.69000001]
[1756654089920,52.73319302,204.32,204.31,0.69000001]
[1756654090232,50.77072602,204.32,204.31,0.69000001]
[1756654090432,76.77072602,204.32,204.31,0.69000001]
[1756654091945,38.71072602,204.32,204.31,0.69000001]
[1756654092131,76.77072602,204.32,204.31,0.69000001]
[1756654094344,38.71072602,204.32,204.31,0.69000001]
[1756654094549,76.77072602,204.32,204.31,0.69000001]
[1756654095352,72.25718983,204.32,204.31,0.69000001]
[1756654095653,71.87644255,204.32,204.31,0.69000001]
[1756654095857,41.36290636,204.32,204.31,0.69000001]
[1756654097550,3.30290636,204.32,204.31,0.69000001]
[1756654101365,7.87644255,204.32,204.31,0.69000001]
[1756654102238,41.42290636,204.32,204.31,0.69000001]
[1756654102471,45.93644255,204.32,204.31,0.69000001]
[1756654106655,41.42290636,204.32,204.31,0.69000001]
[1756654106864,45.93644255,204.32,204.31,0.69000001]
[1756654107040,45.93644255,204.32,204.31,1e-08]
[1756654107476,45.93644255,204.32,204.31,0.69000001]
[1756654110382,41.42290636,204.32,204.31,0.69000001]
[1756654110544,45.93644255,204.32,204.31,0.69000001]
[1756654111681,41.42290636,204.32,204.31,0.69000001]
[1756654112046,7.87644255,204.32,204.31,0.69000001]
[1756654112243,45.91644255,204.32,204.31,0.69000001]
[1756654112444,3.36290636,204.32,204.31,0.69000001]
[1756654112673,38.1,204.32,204.31,0.69000001]
[1756654112859,41.40290636,204.32,204.31,0.69000001]
[1756654113372,0.06,204.32,204.31,5.2035362]
[1756654114167,0.06,204.32,204.31,0.69000001]
[1756654115243,4.57353619,204.32,204.31,0.69000001]
[1756654117272,42.61353619,204.32,204.31,0.69000001]
[1756654118266,0.06,204.32,204.31,0.69000001]
[1756654121449,4.57353619,204.32,204.31,0.69000001]
[1756654122278,0.06,204.32,204.31,0.69000001]
[1756654126054,0.06,204.32,204.31,5.2035362]
[1756654126270,0.06,204.32,204.31,10.09805922]
[1756654129165,0.06,204.32,204.31,23.69365323]
[1756654129995,0.06,204.32,204.31,5.58452303]
[1756654130873,0.06,204.32,204.31,10.09805922]
[1756654131077,0.06,204.32,204.31,5.58452303]
[1756654132706,0.06,204.32,204.31,0.69000001]
[1756654134288,0.06,204.32,204.31,5.58452303]
[1756654137501,0.06,204.32,204.31,0.69000001]
[1756654138077,0.06,204.32,204.31,1e-08]
[1756654138303,0.06,204.32,204.31,0.66000001]
[1756654138598,0.06,204.32,204.31,1e-08]
[1756654140602,0.06,204.32,204.31,0.66000001]
[1756654140975,0.06,204.32,204.31,5.1735362]
[1756654142574,0.06,204.32,204.31,10.06805922]
[1756654144588,0.06,204.32,204.31,23.66365323]
[1756654144899,0.06,204.32,204.31,25.62487023]
[1756654145303,0.01192301,204.32,204.31,63.62487023]
[1756654147700,0.01192301,204.32,204.31,25.62487023]
[1756654147906,0.01192301,204.32,204.31,10.06805922]
[1756654148407,0.01192301,204.32,204.31,66.33891036]
[1756654150390,0.01192301,204.32,204.31,79.93450437]
[1756654150707,0.01192301,204.32,204.31,81.89591337]
[1756654151013,0.01192301,204.32,204.31,115.89591337]
[1756654151582,0.01192301,204.32,204.31,153.89591337]
[1756654153512,0.01192301,204.32,204.31,115.89591337]
[1756654153707,0.01192301,204.32,204.31,153.87591337]
[1756654154079,0.01192301,204.32,204.31,119.87591337]
[1756654155509,0.06,204.34,204.32,13.59559401]
[1756654155705,0.06,204.34,204.33,18.1091302]
[1756654155912,0.06,204.34,204.33,56.7491302]
[1756654156111,0.06,204.34,204.33,58.7103472]
[1756654157094,0.06,204.34,204.33,63.60439114]
[1756654158092,0.06,204.34,204.33,25.62439114]
[1756654158295,0.06,204.34,204.33,63.60439114]
[1756654160217,0.06,204.34,204.33,25.62439114]
[1756654160394,0.06,204.34,204.33,63.60439114]
[1756654160594,0.06,204.34,204.33,57.12963795]
[1756654160792,0.06,204.34,204.33,61.64317414]
[1756654161515,0.06,204.34,204.33,63.60439114]
[1756654161902,0.06,204.34,204.33,61.64317414]
[1756654162101,0.06,204.34,204.33,25.62439114]
[1756654162494,0.06,204.34,204.33,63.60439114]
[1756654162895,0.06,204.34,204.33,1.961217]
[1756654163196,0.06,204.34,204.33,37.98]
[1756654163919,0.06,204.34,204.33,42.87404394]
[1756654164119,0.06,204.34,204.33,47.38758013]
[1756654164325,0.06,204.34,204.33,48.04758013]
[1756654166225,0.06,204.34,204.33,47.38758013]
[1756654166527,0.45,204.34,204.33,37.98]
[1756654166718,0.06,204.34,204.33,37.98]
[1756654173342,4.96353619,204.34,204.32,0.03]
[1756654173532,7.81478421,204.33,204.32,0.03]
[1756654174040,8.20478421,204.33,204.32,0.03]
[1756654177132,7.81478421,204.33,204.32,0.03]
[1756654177841,3.30124802,204.33,204.32,0.03]
[1756654178347,8.20478421,204.33,204.32,0.03]
[1756654178550,13.09882815,204.33,204.32,0.03]
[1756654178924,3.30124802,204.33,204.32,0.03]
[1756654179125,0.06,204.34,204.32,0.03]
[1756654179338,3.35873168,204.34,204.32,0.03]
[1756654180654,3.35873168,204.34,204.32,5.26353619]
[1756654180958,0.06,204.34,204.33,5.23353619]
[1756654183054,0.06,204.34,204.33,38.68]
[1756654184952,0.06,204.34,204.33,37.96]
[1756654185451,0.06,204.34,204.33,38.68]
[1756654186557,0.06,204.34,204.33,43.19353619]
[1756654187536,0.06,204.34,204.33,48.08758013]
[1756654189761,0.06,204.34,204.33,38.68]
[1756654190063,0.06,204.34,204.33,37.96]
[1756654190860,0.06,204.34,204.33,43.57404394]
[1756654191048,0.06,204.34,204.33,43.19353619]
[1756654191451,0.06,204.34,204.33,48.08758013]
[1756654192339,0.06,204.34,204.33,61.68317414]
[1756654192557,0.01865589,204.35,204.33,63.64439114]
[1756654192782,0.01865589,204.35,204.34,23.72293464]
[1756654193853,0.01865589,204.35,204.34,25.68395964]
[1756654194658,0.01865589,204.35,204.34,59.68395964]
[1756654195360,0.01865589,204.35,204.34,25.68395964]
[1756654196362,0.01865589,204.35,204.34,63.62395964]
[1756654197559,0.01865589,204.35,204.34,25.68395964]
[1756654197768,0.01865589,204.35,204.34,59.11042345]
[1756654197944,0.01865589,204.35,204.34,63.62395964]
[1756654200666,0.01865589,204.35,204.34,89.62395964]
[1756654200970,0.06,204.38,204.34,76.34785118]
[1756654201271,1e-08,204.38,204.37,44.1091302]
[1756654201468,1e-08,204.38,204.37,82.0491302]
[1756654201771,1e-08,204.38,204.37,82.7691302]
[1756654201947,1e-08,204.38,204.37,84.7297702]
[1756654202354,1e-08,204.38,204.37,1.96064]
[1756654202574,1e-08,204.38,204.37,37.94]
[1756654204775,1e-08,204.38,204.37,42.83308606]
[1756654207062,1e-08,204.38,204.37,43.50308606]
[1756654207378,1e-08,204.38,204.37,48.01662225]
[1756654207562,1e-08,204.38,204.37,48.04662225]
[1756654209966,1e-08,204.38,204.37,47.35662225]
[1756654211164,1e-08,204.38,204.37,48.02662225]
[1756654211486,1e-08,204.38,204.37,43.51308606]
[1756654211664,1e-08,204.38,204.37,37.95]
[1756654211871,4.5135362,204.38,204.37,37.95]
[1756654212567,1e-08,204.38,204.37,38.62]
[1756654212763,1e-08,204.38,204.37,42.84308606]
[1756654213866,1e-08,204.38,204.37,43.51308606]
[1756654215789,1e-08,204.38,204.37,4.92308606]
[1756654216085,1e-08,204.38,204.37,37.95]
[1756654217580,4.5135362,204.38,204.37,37.95]
[1756654218469,1e-08,204.38,204.37,37.95]
[1756654218868,1e-08,204.38,204.37,42.84308606]
[1756654219273,1e-08,204.38,204.37,43.51308606]
[1756654220287,1e-08,204.38,204.37,42.84308606]
[1756654222695,1e-08,204.38,204.37,37.95]
[1756654224989,1e-08,204.38,204.37,0.03]
[1756654224990,4.9035362,204.38,204.37,0.03]
[1756654226186,4.5135362,204.38,204.37,0.03]
[1756654226385,4.9035362,204.38,204.37,0.03]
[1756654226992,4.5135362,204.38,204.37,0.03]
[1756654228690,4.9035362,204.38,204.37,0.03]
[1756654229000,35.79638285,204.38,204.37,0.03]
[1756654230398,39.08969537,204.38,204.37,0.03]
[1756654231229,35.79638285,204.38,204.37,0.03]
[1756654231397,39.08984096,204.38,204.37,0.03]
[1756654232301,39.08993502,204.38,204.37,0.03]
[1756654234731,43.60347121,204.38,204.37,0.03]
[1756654234933,34.57639883,204.38,204.37,0.03]
[1756654235122,43.60347121,204.38,204.37,0.03]
[1756654237111,81.50347121,204.38,204.37,0.03]
[1756654237823,76.98993502,204.38,204.37,0.03]
[1756654239314,76.59993502,204.38,204.37,0.03]
[1756654239528,76.98993502,204.38,204.37,0.03]
[1756654240913,78.56173002,204.38,204.37,0.03]
[1756654241638,76.59993502,204.38,204.37,0.03]
[1756654242413,38.69993502,204.38,204.37,0.03]
[1756654242754,76.59993502,204.38,204.37,0.03]
[1756654243737,76.59774238,204.38,204.37,0.03]
[1756654244314,73.30638285,204.38,204.37,0.03]
[1756654246419,76.59817341,204.38,204.37,0.03]
[1756654249961,50.98817341,204.38,204.37,0.03]
[1756654250124,60.99078572,204.38,204.37,0.03]
[1756654250745,26.0,204.35,204.34,0.03]
[1756654250918,66.8032297,204.35,204.34,0.03]
[1756654251126,67.1932297,204.35,204.34,0.03]
[1756654251352,81.9095727,204.35,204.34,0.03]
[1756654252063,83.5433727,204.35,204.34,0.03]
[1756654252355,83.1533727,204.35,204.34,0.03]
[1756654253059,88.04693766,204.35,204.34,0.03]
[1756654253227,91.72897292,204.35,204.34,0.03]
[1756654254572,48.90194322,204.35,204.34,0.03]
[1756654254732,76.62262992,204.35,204.34,0.71]
[1756654254939,73.33059466,204.35,204.34,0.03]
[1756654256863,72.08616699,204.35,204.34,0.03]
[1756654257046,76.62319669,204.35,204.34,0.03]
[1756654259544,91.33953969,204.35,204.34,0.03]
[1756654260561,91.72953969,204.35,204.34,0.03]
[1756654261261,53.82953969,204.35,204.34,0.03]
[1756654261452,105.3251337,204.35,204.34,0.03]
[1756654261656,26.0,204.32,204.31,56.27085115]
[1756654261967,71.72963173,204.32,204.31,56.27085115]
[1756654262336,86.44813973,204.32,204.31,56.27085115]
[1756654262549,86.83813973,204.32,204.31,56.27085115]
[1756654262746,100.43373374,204.32,204.31,56.27085115]
[1756654263368,100.43373374,204.32,204.31,1e-08]
[1756654263666,104.93801721,204.32,204.31,1e-08]
[1756654264553,105.32801721,204.32,204.31,1e-08]
[1756654265139,104.93801721,204.32,204.31,1e-08]
[1756654265346,83.1555377,204.32,204.31,0.66000001]
[1756654265566,4.5370297,204.32,204.31,0.66000001]
[1756654265746,42.4370297,204.32,204.31,0.66000001]
[1756654266069,47.33131317,204.32,204.31,0.66000001]